bitfinex/quotes_ETHUSD_20241104
["timestamp","ask_amount","ask_price","bid_price","bid_amount"]
[1730709854998,4.84101,2458.3,2457.8,4.14996322]
[1730709855385,4.84101,2458.3,2457.9,4.06839]
[1730709855580,0.7731,2458.3,2458.0,4.06832]
[1730709855816,0.7731,2458.3,2457.9,4.06839]
[1730709855988,4.84099,2458.3,2457.9,4.06839]
[1730709856525,4.06803,2458.2,2457.8,4.06866]
[1730709856882,4.84099,2458.3,2457.8,4.06866]
[1730709857117,8.90893,2458.3,2457.8,4.06866]
[1730709858115,8.90893,2458.3,2457.7,4.48821686]
[1730709858116,4.06833,2458.1,2457.7,4.48821686]
[1730709858317,4.06833,2458.1,2457.7,4.06882]
[1730709859023,4.0683,2458.1,2457.7,4.06882]
[1730709859178,8.13659,2458.1,2457.7,4.06882]
[1730709859381,4.07866,2457.9,2457.5,0.5495]
[1730709859626,4.06866,2457.9,2457.5,4.69998581]
[1730709860497,4.06836,2458.0,2457.6,4.06894]
[1730709861493,4.06836,2458.0,2457.6,4.06899]
[1730709861683,4.07822,2458.1,2457.7,4.93754]
[1730709862501,4.07822,2458.1,2457.7,4.06878]
[1730709863928,4.07822,2458.1,2457.6,4.06893]
[1730709863929,4.06837,2458.0,2457.6,4.06893]
[1730709865532,4.06837,2458.0,2457.6,8.13786]
[1730709865738,4.06837,2458.0,2457.5,4.06911]
[1730709865739,4.06852,2457.9,2457.5,4.06911]
[1730709865905,4.06837,2458.0,2457.5,4.06911]
[1730709866093,4.06837,2458.0,2457.6,0.08137179]
[1730709866444,4.06854,2457.9,2457.5,4.06911]
[1730709866602,4.07826,2458.1,2457.6,4.15035179]
[1730709866806,4.06834,2458.0,2457.7,4.06874]
[1730709867136,4.06848,2458.0,2457.5,5.237935]
[1730709867632,4.06848,2458.0,2457.5,5.237885]
[1730709868696,4.06848,2458.0,2457.6,4.15030079]
[1730709868908,4.07824,2458.1,2457.7,0.5495]
[1730709869496,4.06824,2458.1,2457.7,4.61829]
[1730709869831,4.06824,2458.1,2457.8,0.08136508]
[1730709870204,4.06824,2458.1,2457.7,4.61829]
[1730709871515,8.13651,2458.1,2457.7,4.61829]
[1730709871719,4.06824,2458.1,2457.7,5.52785652]
[1730709874034,4.88365,2458.2,2457.8,4.06866]
[1730709874331,4.06805,2458.2,2457.8,4.06866]
[1730709874533,4.078,2458.3,2457.9,4.06849]
[1730709874737,0.01,2458.3,2458.0,4.06832]
[1730709874938,0.01,2458.3,2458.1,0.66766364]
[1730709875095,4.06791,2458.3,2457.9,4.06848]
[1730709876830,4.06805,2458.2,2457.8,4.06866]
[1730709877713,4.06792,2458.3,2457.9,4.06848]
[1730709882247,4.66507896,2458.4,2457.9,4.06848]
[1730709882447,8.73283896,2458.4,2458.0,4.06833]
[1730709884148,4.85506,2458.4,2458.0,4.06833]
[1730709884521,4.06776,2458.4,2458.0,4.06833]
[1730709884715,4.06776,2458.4,2458.1,4.61768]
[1730709884922,4.07755,2458.5,2458.1,4.61768]
[1730709885816,4.0678,2458.4,2458.1,0.5495]
[1730709887319,4.06804,2458.2,2457.8,4.61809]
[1730709889354,4.06825,2458.1,2457.7,4.06881]
[1730709889564,4.06837,2458.0,2457.6,7.61843]
[1730709889854,4.06825,2458.1,2457.7,4.0688]
[1730709889855,4.06831,2458.1,2457.7,4.0688]
[1730709890358,4.06831,2458.1,2457.7,4.06876]
[1730709890724,0.01,2458.2,2457.6,0.5495]
[1730709890937,0.01,2458.2,2457.8,4.06856]
[1730709891360,0.01,2458.2,2457.8,4.93725]
[1730709891860,0.01,2458.2,2457.9,4.0685]
[1730709892020,8.96012,2458.3,2457.9,4.0685]
[1730709892021,4.89216,2458.3,2457.9,4.0685]
[1730709892221,7.95551896,2458.4,2458.0,0.5495]
[1730709892423,4.06786,2458.3,2458.0,0.5495]
[1730709892865,7.95551896,2458.4,2458.0,4.61784]
[1730709892866,3.88777896,2458.4,2458.0,4.61784]
[1730709893052,7.95552896,2458.4,2458.0,4.61784]
[1730709893235,12.02330896,2458.4,2458.0,4.61784]
[1730709894355,4.06785,2458.3,2458.0,4.61784]
[1730709895054,7.95549896,2458.4,2458.0,4.61784]
[1730709897381,7.95549896,2458.4,2458.0,5.32638016]
[1730709897848,4.06787,2458.3,2458.0,1.25804016]
[1730709898174,4.06787,2458.3,2458.0,0.5495]
[1730709899565,4.06806,2458.2,2457.8,4.61816]
[1730709899768,4.06806,2458.2,2457.9,0.70643057]
[1730709900075,4.06806,2458.2,2457.8,8.6867]
[1730709900285,3.88777896,2458.4,2457.9,4.77483209]
[1730709900439,0.01,2458.4,2458.1,4.06818]
[1730709900642,0.01,2458.6,2458.2,0.5495]
[1730709900955,4.0676,2458.5,2458.2,0.5495]
[1730709901167,4.06769,2458.4,2458.2,0.5495]
[1730709901417,5.73891321,2458.3,2458.0,0.5495]
[1730709901577,1.67105321,2458.1,2458.0,0.70634577]
[1730709901769,1.67105321,2458.1,2457.7,1.82885705]
[1730709901770,1.67105321,2458.1,2457.7,7.61824]
[1730709901986,1.67105321,2458.1,2457.8,1.76608622]
[1730709902208,1.67105321,2457.9,2457.8,1.05961294]
[1730709902510,1.67105321,2457.9,2457.8,0.70643679]
[1730709902678,1.67105321,2457.9,2457.8,0.7064436]
[1730709903420,1.67105321,2457.9,2457.5,0.8529047]
[1730709903421,4.07882,2457.8,2457.5,0.8529047]
[1730709903744,1.67105321,2457.6,2457.5,1.05973778]
[1730709904009,1.67105321,2457.6,2457.5,0.70653285]
[1730709904216,1.67105321,2457.6,2457.5,1.76627063]
[1730709904416,1.67105321,2457.6,2457.5,0.70653285]
[1730709904978,1.67105321,2457.6,2457.5,1.76627063]
[1730709905211,1.68105321,2457.8,2457.5,5.83544063]
[1730709905415,0.8035,2457.4,2457.2,0.8529047]
[1730709905622,0.8035,2457.4,2457.1,1.0597473]
[1730709905623,4.07967,2457.2,2457.1,1.0597473]
[1730709905787,4.07967,2457.2,2457.1,0.70656471]
[1730709905993,4.07967,2457.2,2456.9,0.8529047]
[1730709905994,7.96119186,2457.2,2456.9,1.0597473]
[1730709906312,4.07,2457.0,2456.6,4.9234947]
[1730709906524,0.8035,2457.1,2456.7,0.70612276]
[1730709906723,4.87334,2457.1,2456.7,5.83578691]
[1730709906873,4.87334,2457.1,2456.7,4.07048]
[1730709907477,0.8035,2457.1,2456.7,4.0704]
[1730709907685,7.96126186,2457.2,2456.8,4.61975]
[1730709909621,7.96126186,2457.2,2456.8,0.5495]
[1730709909975,3.89152186,2457.2,2456.8,4.61983]
[1730709910180,3.89152186,2457.2,2456.8,5.081723]
[1730709910625,7.96126186,2457.2,2456.8,5.081723]
[1730709910911,7.96126186,2457.2,2456.8,4.61974]
[1730709912106,7.96126186,2457.2,2456.8,0.5495]
[1730709912317,7.96126186,2457.2,2456.7,4.49492212]
[1730709912704,4.06995,2457.1,2456.7,4.49490212]
[1730709913309,4.06995,2457.1,2456.7,0.42444212]
[1730709913508,7.96126186,2457.2,2456.7,0.42444212]
[1730709913709,4.06953,2457.3,2456.8,4.07028]
[1730709913893,4.06953,2457.3,2457.0,0.5495]
[1730709914095,4.07969,2457.2,2457.0,0.5495]
[1730709914297,4.07969,2457.2,2456.8,4.07023]
[1730709914298,4.07969,2457.2,2456.8,4.61973]
[1730709914880,0.01,2457.6,2457.1,4.06974]
[1730709915085,4.06896,2457.7,2457.4,0.5495]
[1730709915524,4.72042186,2457.8,2457.4,4.6187]
[1730709915708,8.78911186,2457.8,2457.4,4.6187]
[1730709916295,2.95007472,2458.4,2457.4,4.6187]
[1730709916296,7.95979186,2458.1,2457.6,4.06892]
[1730709916519,7.95979186,2458.1,2457.4,0.63087865]
[1730709916520,3.89152186,2458.1,2457.7,4.15012114]
[1730709916708,0.01,2458.1,2457.7,4.48376211]
[1730709916902,0.01,2458.1,2457.7,4.06875]
[1730709917430,4.07796,2458.3,2457.9,4.06851]
[1730709919229,4.06803,2458.2,2457.8,0.5495]
[1730709919398,4.06803,2458.2,2457.8,4.61814]
[1730709919723,4.06803,2458.2,2457.8,0.5495]
[1730709920560,4.06803,2458.2,2457.8,4.61812]
[1730709921120,4.07826,2458.1,2457.7,4.0687]
[1730709921653,0.01,2458.1,2457.7,8.13742]
[1730709921856,0.01,2458.1,2457.8,4.937342]
[1730709922025,0.01,2458.1,2457.8,5.01870729]
[1730709922226,0.01,2458.1,2457.8,0.868692]
[1730709922429,4.07819,2458.1,2457.8,0.868692]
[1730709923318,4.06835,2458.0,2457.7,3.0]
[1730709923519,8.74353186,2458.1,2457.7,7.06873]
[1730709923829,3.89152186,2458.1,2457.7,7.06873]
[1730709924460,0.01,2458.1,2457.8,4.06861]
[1730709924773,0.01,2458.1,2457.8,4.06858]
[1730709924929,0.01,2458.1,2457.8,5.237277]
[1730709926264,0.01,2458.1,2457.7,7.06877]
[1730709926429,4.07821,2458.1,2457.7,7.06877]
[1730709926624,0.01,2458.1,2457.8,4.06859]
[1730709928866,0.01,2458.1,2457.9,4.0685]
[1730709929045,0.01,2458.1,2457.8,4.06859]
[1730709929371,0.01,2458.1,2457.8,5.237285]
[1730709929524,0.01,2458.1,2457.8,9.305885]
[1730709929931,3.89152186,2458.4,2457.9,0.5495]
[1730709930179,4.89757,2458.5,2458.1,4.06806]
[1730709930180,0.8299,2458.5,2458.1,4.06806]
[1730709930328,0.8299,2458.5,2458.1,5.02613808]
[1730709930529,0.01,2458.3,2458.1,0.95807808]
[1730709930881,3.88152186,2458.4,2458.1,4.06817]
[1730709931171,3.88152186,2458.4,2458.2,4.068]
[1730709931562,3.88152186,2458.4,2458.1,4.06817]
[1730709932044,3.88152186,2458.4,2458.2,4.06801]
[1730709933236,8.73577186,2458.7,2458.3,4.06785]
[1730709933836,8.73577186,2458.7,2458.2,4.06801]
[1730709934063,8.73577186,2458.7,2458.2,8.13595]
[1730709934435,8.73577186,2458.7,2458.2,4.06794]
[1730709934638,8.73577186,2458.7,2458.2,8.13588]
[1730709935345,1.67089332,2458.4,2458.3,4.06783]
[1730709935549,0.01,2458.9,2458.3,0.63085119]
[1730709935880,1.67089332,2458.6,2458.4,4.06765]
[1730709936078,1.67089332,2458.6,2458.5,0.76364216]
[1730709936447,2.44949332,2458.6,2458.1,8.68566]
[1730709936634,2.44949332,2458.6,2458.0,3.0]
[1730709936635,1.67089332,2458.3,2458.0,3.0]
[1730709936975,1.67089332,2458.3,2457.9,4.06841]
[1730709936976,1.67089332,2458.1,2457.9,4.06841]
[1730709937130,1.67089332,2458.1,2457.7,4.61825]
[1730709937332,4.06825,2458.1,2457.5,4.06905]
[1730709937569,4.06825,2458.1,2457.6,4.06893]
[1730709937570,4.06818,2458.1,2457.6,4.06893]
[1730709937872,4.06818,2458.1,2457.7,4.06878]
[1730709938074,3.89008842,2458.2,2457.6,4.06891]
[1730709938249,4.06818,2458.1,2457.6,4.06891]
[1730709938880,0.7864,2458.0,2457.5,4.6037362]
[1730709939092,4.69088842,2457.6,2457.1,4.61924]
[1730709939240,4.69088842,2457.6,2457.0,0.8529047]
[1730709939241,4.06927,2457.5,2457.0,4.06997]
[1730709939437,4.0693,2457.5,2457.0,4.06997]
[1730709939738,8.75989842,2457.6,2457.1,4.49357484]
[1730709940487,4.07935,2457.4,2457.0,4.06998]
[1730709940772,0.01,2457.4,2457.1,4.06976]
[1730709940936,4.0695,2457.3,2456.9,7.61964]
[1730709941134,0.01,2457.2,2456.9,4.61964]
[1730709941337,0.01,2457.2,2456.9,5.12468492]
[1730709941874,0.01,2457.2,2456.9,1.05454492]
[1730709942071,0.01,2457.2,2457.0,4.06999]
[1730709942247,0.01,2457.2,2456.9,1.05454492]
[1730709942449,0.01,2457.2,2456.9,5.12468492]
[1730709942962,3.88008842,2457.3,2457.0,4.06999]
[1730709943345,0.01,2457.2,2456.9,0.42365089]
[1730709943577,0.7703,2457.2,2456.9,0.42365089]
[1730709943980,0.7703,2457.2,2456.9,4.49379089]
[1730709944198,0.7703,2457.2,2456.9,4.07014]
[1730709944393,0.7703,2457.2,2456.8,4.0703]
[1730709944764,4.83998,2457.2,2456.8,4.0703]
[1730709945299,4.83998,2457.2,2456.4,4.07095]
[1730709945300,3.89008842,2457.0,2456.4,4.62034]
[1730709945458,0.8275,2456.9,2456.5,4.0708]
[1730709945658,0.8275,2456.9,2456.6,4.07066]
[1730709946056,0.8375,2456.9,2456.6,4.07066]
[1730709946457,0.01,2457.1,2456.8,4.07025]
[1730709946658,7.94972842,2457.3,2456.8,4.07025]
[1730709946659,3.89008842,2457.3,2456.9,4.15147962]
[1730709946883,7.95967842,2457.3,2456.8,4.07025]
[1730709947194,7.95967842,2457.3,2456.8,8.14051]
[1730709947690,0.7906,2457.4,2456.9,0.08139549]
[1730709947878,0.01,2457.2,2457.0,4.06992]
[1730709948087,0.01,2457.2,2456.9,4.15154417]
[1730709948390,4.86995,2457.4,2457.0,4.07]
[1730709948589,4.85995,2457.4,2457.0,4.07]
[1730709948795,4.86995,2457.4,2457.0,4.07]
[1730709948997,0.01,2457.2,2456.9,1.12217742]
[1730709949604,0.01,2457.2,2456.9,5.19225742]
[1730709949781,0.7906,2457.4,2457.1,4.0697]
[1730709950528,0.7906,2457.4,2457.0,0.45505274]
[1730709950529,3.88008842,2457.3,2457.0,0.45505274]
[1730709950814,3.88008842,2457.3,2456.9,4.07009]
[1730709950979,4.86001,2457.4,2456.9,4.07009]
[1730709951179,0.7906,2457.4,2457.1,4.06983]
[1730709951580,0.7906,2457.4,2457.0,4.06998]
[1730709952414,3.89008842,2457.3,2456.8,4.07029]
[1730709952617,4.0697,2457.2,2456.7,7.6199]
[1730709952825,7.96016842,2457.0,2456.5,4.07073]
[1730709953124,0.8051,2456.8,2456.5,4.15213322]
[1730709954120,0.8051,2456.8,2456.5,4.07073]
[1730709955421,0.8051,2456.8,2456.4,0.50516187]
[1730709955422,5.75108584,2456.8,2456.4,0.42375435]
[1730709955595,1.68064584,2456.8,2456.4,4.07087]
[1730709955808,0.8051,2456.8,2456.5,4.0708]
[1730709956711,0.8051,2456.8,2456.4,4.07098]
[1730709958650,0.8051,2456.8,2456.5,4.0708]
[1730709959168,0.8051,2456.8,2456.4,4.07098]
[1730709960942,4.87543,2456.8,2456.4,4.07098]
[1730709961245,4.87544,2456.8,2456.4,4.07091]
[1730709961552,0.01,2456.5,2456.3,0.42349402]
[1730709961887,5.35298284,2456.8,2455.6,4.07222]
[1730709961888,0.7531,2456.0,2455.6,4.07222]
[1730709962182,0.7531,2456.0,2455.3,0.8529047]
[1730709962183,0.7531,2456.0,2455.7,4.07208]
[1730709962596,0.7531,2456.0,2455.7,4.07206]
[1730709963475,0.7531,2456.0,2455.6,0.4235969]
[1730709963476,4.07184,2455.9,2455.6,0.4235969]
[1730709963677,0.01,2455.9,2455.5,4.07235]
[1730709963981,4.08182,2455.9,2455.6,0.42370577]
[1730709964196,4.89455,2455.7,2455.6,0.42370577]
[1730709964481,0.8224,2455.7,2454.9,4.62294]
[1730709964694,0.8224,2455.7,2455.5,4.07247]
[1730709965044,0.8224,2455.7,2455.4,4.07264]
[1730709965578,0.8124,2455.7,2455.6,4.07232]
[1730709965747,0.01,2455.9,2455.6,4.07232]
[1730709965947,0.01,2455.9,2455.5,4.07249]
[1730709966149,0.01,2455.9,2455.4,4.887173]
[1730709966572,0.01,2455.9,2455.5,4.07248]
[1730709966787,0.01,2455.9,2455.4,0.814533]
[1730709967080,4.08183,2455.9,2455.4,0.814533]
[1730709967383,0.8037,2455.6,2455.3,0.42359805]
[1730709967583,7.96270842,2455.5,2454.9,4.07342]
[1730709967793,7.96270842,2455.5,2454.8,0.0608995]
[1730709967794,0.8037,2455.4,2455.1,4.07302]
[1730709967988,0.8037,2455.4,2455.0,4.49678466]
[1730709968563,0.8037,2455.4,2455.0,8.57001466]
[1730709968886,0.8037,2455.4,2455.1,4.15452683]
[1730709969096,0.833,2455.6,2455.3,4.07274]
[1730709969600,0.833,2455.6,2455.4,4.07258]
[1730709970170,0.833,2455.6,2455.3,4.0728]
[1730709970577,0.833,2455.6,2455.4,4.07264]
[1730709971099,0.833,2455.6,2455.3,4.0728]
[1730709971398,0.833,2455.6,2455.3,4.07271]
[1730709971568,0.833,2455.6,2455.3,8.14544]
[1730709971898,0.01,2455.7,2455.5,4.07241]
[1730709972069,0.7616,2455.8,2455.6,4.0723]
[1730709972270,0.01,2455.9,2455.7,4.07215]
[1730709972612,0.7616,2456.0,2455.8,4.07195]
[1730709972760,0.7616,2456.0,2455.7,4.07215]
[1730709973562,0.7616,2456.0,2455.6,4.0723]
[1730709974196,0.01,2455.8,2455.4,4.07263]
[1730709974365,0.01,2455.8,2455.6,4.07229]
[1730709974561,0.7716,2456.0,2455.6,4.07229]
[1730709975059,0.01,2455.8,2455.4,4.07263]
[1730709976200,4.83328,2456.0,2455.4,4.07263]
[1730709976611,0.8201,2455.9,2455.4,4.07263]
[1730709976906,0.8201,2455.9,2455.4,4.887161]
[1730709977275,4.89193,2455.9,2455.4,4.887161]
[1730709977480,0.8201,2455.9,2455.4,4.07263]
[1730709977702,4.89192,2455.9,2455.2,4.07292]
[1730709977931,0.7876,2455.8,2455.2,4.07297]
[1730709978214,4.07233,2455.6,2455.1,4.07307]
[1730709978593,4.85979,2455.7,2455.1,4.07307]
[1730709978790,4.85979,2455.7,2455.1,4.15452267]
[1730709978986,4.85979,2455.7,2455.1,0.08145267]
[1730709979199,0.7876,2455.7,2455.0,0.42353466]
[1730709979525,4.07239,2455.6,2455.1,4.07307]
[1730709979822,1.680808,2455.6,2455.1,4.07308]
[1730709980179,0.7876,2455.6,2455.1,4.07308]
[1730709980688,0.7876,2455.6,2455.2,4.07297]
[1730709980872,0.7876,2455.6,2455.4,4.07257]
[1730709981073,4.07183,2455.9,2454.8,4.49048792]
[1730709981074,0.7743,2455.9,2455.5,4.07249]
[1730709981323,0.7743,2455.9,2455.3,4.07272]
[1730709981618,0.7743,2455.9,2455.5,4.07241]
[1730709982479,0.7743,2455.9,2455.4,4.34231042]
[1730709982678,4.07093,2456.5,2455.4,4.34231042]
[1730709982679,0.7743,2456.1,2455.9,4.07179]
[1730709982922,0.7743,2456.6,2456.3,4.07103]
[1730709983223,6.23765598,2457.1,2456.0,0.08142651]
[1730709983224,0.7743,2457.1,2456.5,4.07083]
[1730709983381,4.07001,2457.0,2456.4,4.07093]
[1730709983578,0.7743,2457.1,2456.4,4.07093]
[1730709983785,4.8442,2457.1,2456.2,0.5495]
[1730709984000,4.07008,2457.0,2456.4,4.07092]
[1730709984220,5.37537688,2457.1,2456.5,4.07073]
[1730709984831,5.37537688,2457.1,2456.8,4.07026]
[1730709984832,0.7743,2457.1,2456.8,4.07026]
[1730709985133,0.7743,2457.1,2456.9,4.07008]
[1730709985329,0.7743,2457.1,2456.8,4.07032]
[1730709985537,0.7743,2457.1,2456.9,4.07008]
[1730709985723,0.7743,2457.1,2457.0,4.07]
[1730709986027,0.7898,2457.5,2456.9,4.07]
[1730709986533,0.7898,2457.5,2457.0,4.06992]
[1730709986923,0.7898,2457.5,2457.3,4.06941]
[1730709987239,0.7898,2457.5,2457.1,4.06981]
[1730709987727,0.7898,2457.5,2457.2,4.06963]
[1730709987937,0.7898,2457.5,2457.0,4.06999]
[1730709988100,0.7898,2457.5,2457.1,4.06974]
[1730709988432,0.7898,2457.5,2456.7,7.07049]
[1730709988433,5.345008,2457.5,2456.9,4.07008]
[1730709989139,9.414288,2457.5,2456.9,4.07008]
[1730709989702,4.06935,2457.4,2456.9,4.07008]
[1730709990721,4.06935,2457.4,2456.7,4.07034]
[1730709991037,4.06941,2457.4,2456.9,4.07013]
[1730709991649,0.7898,2457.5,2457.2,4.06952]
[1730709991854,0.8059,2458.0,2457.5,4.06907]
[1730709992057,4.06859,2457.9,2457.3,4.6189]
[1730709992261,0.816,2457.8,2457.1,4.06983]
[1730709992416,0.816,2457.8,2457.3,4.06938]
[1730709993358,0.816,2457.8,2457.4,4.06926]
[1730709993656,0.816,2457.8,2457.5,4.06915]
[1730709993951,0.816,2457.8,2457.4,4.06926]
[1730709994159,0.816,2457.8,2457.4,8.13851]
[1730709994314,0.816,2457.8,2457.4,4.06925]
[1730709994527,5.78004,2457.8,2457.2,4.06958]
[1730709994857,5.78004,2457.8,2457.3,4.0695]
[1730709995015,0.816,2457.8,2457.0,4.06999]
[1730709995216,0.816,2457.8,2457.5,4.06914]
[1730709995855,0.816,2457.8,2457.6,4.06889]
[1730709996015,0.816,2457.8,2457.5,8.13813]
[1730709996415,0.816,2457.8,2457.5,4.06906]
[1730709996840,0.816,2457.8,2457.5,8.13815]
[1730709997062,0.816,2457.8,2457.3,0.5495]
[1730709997331,0.816,2457.8,2457.5,4.06915]
[1730709997548,0.7531,2458.1,2457.6,4.06891]
[1730709997754,4.82129,2458.1,2457.6,4.06891]
[1730709998053,0.7531,2458.1,2457.5,4.06904]
[1730709998226,0.7531,2458.1,2457.3,0.5495]
[1730709998555,8.13692,2458.0,2457.4,4.06925]
[1730709998761,4.06846,2458.0,2457.5,4.06911]
[1730709999228,4.82128,2458.1,2457.6,4.06899]
[1730709999962,4.82128,2458.1,2457.3,1.011432]
[1730709999963,0.7531,2458.1,2457.3,1.011432]
[1730710000272,0.7864,2458.3,2458.0,4.06831]
[1730710000413,0.7864,2458.3,2457.5,7.94925842]
[1730710000414,0.7864,2458.3,2457.8,4.06855]
[1730710000620,0.7766,2458.6,2458.1,4.06805]
[1730710000816,0.7766,2458.6,2458.2,4.0679]
[1730710001457,0.7766,2458.6,2458.3,4.06782]
[1730710001660,0.7766,2458.6,2458.2,4.06798]
[1730710003659,0.7766,2458.6,2458.4,4.06759]
[1730710003954,4.89391,2459.3,2458.8,4.06701]
[1730710004159,0.8277,2459.3,2458.9,4.06684]
[1730710004357,1.317083,2459.3,2458.9,4.06684]
[1730710004533,1.317083,2459.3,2458.6,4.06724]
[1730710004534,5.383293,2459.3,2458.6,4.06724]
[1730710004729,5.383293,2459.3,2458.3,3.0]
[1730710005027,4.06636,2459.2,2458.8,4.06697]
[1730710005641,5.383303,2459.3,2458.8,4.06697]
[1730710005852,1.317083,2459.3,2458.9,4.06684]
[1730710006019,1.317083,2459.3,2458.7,0.5495]
[1730710006218,5.383293,2459.3,2458.8,4.06702]
[1730710006652,1.317083,2459.3,2458.8,4.06689]
[1730710006864,0.8277,2459.3,2459.0,4.06662]
[1730710007562,4.89392,2459.3,2458.8,4.06701]
[1730710007730,4.06636,2459.2,2458.4,4.06756]
[1730710007935,4.06636,2459.2,2458.7,8.13425]
[1730710008133,4.06636,2459.2,2458.7,8.1342]
[1730710008344,4.06636,2459.2,2458.7,4.06709]
[1730710008530,0.763,2459.6,2458.8,0.5495]
[1730710008735,4.06598,2459.5,2459.0,4.06667]
[1730710008956,4.06598,2459.5,2458.8,4.61652]
[1730710008957,4.06604,2459.4,2458.8,4.61652]
[1730710009168,4.06623,2459.3,2458.8,4.06702]
[1730710009759,4.06586,2459.5,2458.7,4.06718]
[1730710010056,4.0663,2459.3,2458.8,4.06693]
[1730710011058,0.8165,2459.4,2458.9,4.06678]
[1730710011220,0.8165,2459.4,2458.5,4.06749]
[1730710011419,0.8223,2458.6,2457.8,4.61808]
[1730710011663,4.06788,2458.3,2457.6,4.42958842]
[1730710011831,0.7549,2458.1,2457.7,4.06873]
[1730710012159,0.7549,2458.1,2457.8,0.868712]
[1730710012886,0.7549,2458.1,2457.8,4.937362]
[1730710013170,7.07748,2458.6,2457.9,7.94852842]
[1730710013171,4.86899,2458.5,2457.9,7.94852842]
[1730710013351,4.06775,2458.4,2457.9,7.94852842]
[1730710013656,0.8014,2458.5,2457.9,0.70851816]
[1730710013865,0.8014,2458.5,2457.6,0.5495]
[1730710013866,4.06826,2458.1,2457.6,0.5495]
[1730710014025,4.06862,2457.9,2457.3,3.88008842]
[1730710014222,0.7997,2458.0,2457.4,0.38800884]
[1730710014223,4.06887,2457.7,2457.4,0.38800884]
[1730710014428,4.86891,2457.5,2456.9,4.07007]
[1730710014735,0.7997,2457.5,2457.1,4.06982]
[1730710015137,4.8664,2457.8,2457.3,4.06949]
[1730710015860,8.93516,2457.8,2457.3,4.06949]
[1730710016022,4.8664,2457.8,2457.2,0.5495]
[1730710016230,4.06884,2457.7,2457.3,0.461932]
[1730710016841,4.06884,2457.7,2457.1,8.13958]
[1730710017270,0.7977,2457.8,2457.0,3.88008842]
[1730710017485,4.06937,2457.4,2456.9,4.07002]
[1730710017768,3.22016026,2457.4,2456.9,4.07002]
[1730710018395,4.06924,2457.5,2456.8,4.49409428]
[1730710018594,0.7893,2457.3,2456.8,0.42388428]
[1730710018890,0.7893,2457.3,2456.9,4.07015]
[1730710019261,0.7893,2457.3,2456.9,8.14021]
[1730710020290,0.7893,2457.3,2456.9,4.07006]
[1730710020788,0.7893,2457.3,2457.0,4.06992]
[1730710020955,0.7893,2457.3,2457.1,0.813998]
[1730710021557,8.13788,2457.7,2457.1,4.883798]
[1730710021759,4.87069,2457.9,2457.3,4.06935]
[1730710021995,4.87069,2457.9,2457.4,4.06927]
[1730710022195,0.8021,2458.2,2457.9,4.06842]
[1730710022496,4.06802,2458.2,2457.7,0.5495]
[1730710022676,4.06802,2458.2,2457.7,4.61833]
[1730710022866,4.06802,2458.2,2457.7,8.6871]
[1730710023062,4.06796,2458.3,2457.8,4.06858]
[1730710024099,4.89626,2458.4,2457.8,4.06858]
[1730710024300,0.8015,2458.6,2457.9,4.34189642]
[1730710024604,0.5,2458.7,2458.3,4.06773]
[1730710024902,0.5,2458.7,2458.2,4.06801]
[1730710025264,4.56728,2458.7,2458.2,4.06801]
[1730710025460,8.63456,2458.7,2458.2,4.881619]
[1730710025659,8.63462,2458.7,2458.2,4.881619]
[1730710026064,4.56728,2458.7,2458.2,4.881619]
[1730710027093,4.56724,2458.7,2458.2,0.813609]
[1730710027396,4.06762,2458.5,2458.0,4.06834]
[1730710027960,8.13526,2458.5,2458.0,4.06834]
[1730710028170,0.5,2458.7,2457.5,3.8529047]
[1730710028171,0.7739,2458.4,2457.5,5.4714547]
[1730710028389,0.7739,2457.9,2457.4,0.42370753]
[1730710028611,0.5,2458.7,2457.0,5.58589782]
[1730710028612,4.06936,2457.4,2457.0,0.8529047]
[1730710028894,4.86301,2457.5,2457.1,0.49229547]
[1730710029096,4.86301,2457.5,2456.8,4.61976]
[1730710029313,4.06958,2457.3,2456.8,4.07026]
[1730710029664,4.86297,2457.5,2456.9,4.07003]
[1730710029859,0.7937,2457.5,2456.7,3.88008842]
[1730710030082,4.88702,2457.9,2457.4,4.06925]
[1730710030287,0.8184,2457.9,2457.5,4.476025]
[1730710030485,0.8184,2457.9,2457.5,0.406925]
[1730710030701,4.88693,2457.9,2457.5,0.406925]
[1730710031702,0.8184,2457.9,2457.5,0.406925]
[1730710031864,4.0687,2457.8,2457.5,0.406925]
[1730710032563,4.887,2457.9,2457.5,0.406925]
[1730710032784,4.887,2457.9,2457.2,4.0696]
[1730710032785,0.8184,2457.9,2457.2,4.0696]
[1730710033106,0.8184,2457.9,2456.9,0.42392604]
[1730710033107,4.84116,2457.4,2456.9,0.42392604]
[1730710033404,0.7718,2457.4,2457.0,4.06993]
[1730710033583,4.83423,2457.6,2457.0,4.15131928]
[1730710033785,4.83423,2457.6,2457.1,0.45752453]
[1730710033997,4.83423,2457.6,2457.2,4.06966]
[1730710034203,4.83423,2457.6,2457.1,4.52726453]
[1730710034508,4.06919,2457.5,2457.1,0.45752453]
[1730710035373,4.06919,2457.5,2457.1,4.52734453]
[1730710035704,4.83422,2457.6,2457.1,4.52734453]
[1730710035903,4.06918,2457.5,2457.1,4.52734453]
[1730710036206,4.06918,2457.5,2457.1,0.45752453]
[1730710036363,4.83421,2457.6,2457.1,4.52734453]
[1730710036564,0.7652,2457.6,2457.1,4.52734453]
[1730710036797,0.7652,2457.6,2457.2,4.52238445]
[1730710037110,0.7764,2457.9,2457.5,4.06907]
[1730710038876,4.84494,2457.9,2457.5,4.06907]
[1730710039175,4.06868,2457.8,2457.4,4.0693]
[1730710039612,4.06868,2457.8,2457.4,4.06924]